fUST/lending_fUST_20250811
["ID","MTS","AMOUNT","RATE_DAILY","PERIOD"]
[378401660,1754845838199,-460.0,0.00020776,2]
[378401662,1754845838208,-460.0,0.00020776,2]
[378401664,1754845838218,-460.0,0.00020776,2]
[378401666,1754845838227,-461.37026371,0.00020776,2]
[378401668,1754845838237,-460.0,0.00020776,2]
[378401670,1754845838246,-460.0,0.00020776,2]
[378401672,1754845838256,-347.93440065,0.00020776,2]
[378401674,1754845838265,-460.83918595,0.00020776,2]
[378401676,1754845838275,-460.0,0.00020776,2]
[378401678,1754845838284,-460.0,0.00020776,2]
[378401680,1754845838294,-460.0,0.00020776,2]
[378401682,1754845838303,-460.0,0.00020776,2]
[378401684,1754845838313,-461.98038408,0.00020776,2]
[378401686,1754845838322,-460.0,0.00020776,2]
[378401687,1754845838332,-460.0,0.00020776,2]
[378401688,1754845838341,-486.01,0.00020776,2]
[378401689,1754845838350,-462.00146883,0.00020776,2]
[378401690,1754845838359,-460.0,0.00020776,2]
[378401691,1754845838369,-460.0,0.00020776,2]
[378401692,1754845838378,-460.0,0.00020776,2]
[378401693,1754845838388,-460.0,0.00020776,2]
[378401694,1754845838397,-500.0,0.00020776,2]
[378401695,1754845838406,-460.0,0.00020776,2]
[378401696,1754845838416,-235.2618485,0.00020776,2]
[378401697,1754845838425,-460.0,0.00020776,2]
[378401698,1754845838434,-501.01,0.00020776,2]
[378401699,1754845838446,-585.25,0.00020776,2]
[378401701,1754845838456,-460.0,0.00020776,2]
[378401703,1754845838466,-460.0,0.00020776,2]
[378401705,1754845838476,-462.07969999,0.00020776,2]
[378401707,1754845838486,-460.0,0.00020776,2]
[378401709,1754845838496,-460.0,0.00020776,2]
[378401711,1754845838506,-1076.2,0.00020776,2]
[378401713,1754845838516,-500.0,0.00020777,2]
[378401715,1754845838526,-500.0,0.00020777,2]
[378401717,1754845838535,-500.0,0.00020777,2]
[378401719,1754845838544,-500.0,0.00020777,2]
[378401721,1754845838554,-542.31,0.00020777,2]
[378401723,1754845838564,-200.0,0.00020967,15]
[378401725,1754845838574,-300.0,0.00020967,15]
[378401727,1754845838584,-500.0,0.00021049,2]
[378401729,1754845838594,-500.0,0.00021049,2]
[378401731,1754845838604,-202.03389814,0.00021049,2]
[378401733,1754845838614,-500.0,0.00021049,2]
[378401735,1754845838625,-405.23037199,0.00021049,2]
[378401737,1754845838637,-500.0,0.00021049,2]
[378401739,1754845838647,-500.0,0.00021049,2]
[378401741,1754845838657,-501.42660936,0.00021049,2]
[378401744,1754845838667,-480.24456054,0.00021049,2]
[378401746,1754845838676,-500.0,0.00021049,2]
[378401748,1754845838685,-500.0,0.00021049,2]
[378401749,1754845838696,-460.0,0.0002105,2]
[378401752,1754845838706,-460.0,0.0002105,2]
[378401754,1754845838716,-460.0,0.0002105,2]
[378401756,1754845838726,-460.0,0.0002105,2]
[378401758,1754845838736,-640.19,0.0002105,2]
[378401760,1754845838746,-1425.82,0.0002105,2]
[378401762,1754845838755,-460.0,0.0002105,2]
[378401764,1754845838765,-460.0,0.0002105,2]
[378401766,1754845838775,-486.01,0.0002105,2]
[378401768,1754845838784,-460.0,0.0002105,2]
[378401770,1754845838794,-1076.2,0.0002105,2]
[378401772,1754845838804,-462.0722567,0.00021178,2]
[378401774,1754845838814,-460.0,0.00021178,2]
[378401776,1754845838824,-460.0,0.00021178,2]
[378401778,1754845838834,-460.0,0.00021178,2]
[378401780,1754845838843,-460.0,0.00021178,2]
[378401782,1754845838853,-456.68591031,0.00021178,2]
[378401784,1754845838863,-460.0,0.00021178,2]
[378401787,1754845838872,-460.0,0.00021178,2]
[378401789,1754845838884,-460.0,0.00021178,2]
[378401791,1754845838893,-460.0,0.00021178,2]
[378401793,1754845838905,-460.0,0.00021178,2]
[378401795,1754845838915,-460.0,0.00021178,2]
[378401797,1754845838924,-460.0,0.00021178,2]
[378401799,1754845838934,-1037.89,0.00021178,2]
[378401801,1754845838943,-460.0,0.00021178,2]
[378401802,1754845838953,-460.0,0.00021178,2]
[378401805,1754845838963,-460.0,0.00021178,2]
[378401806,1754845838974,-460.0,0.00021178,2]
[378401809,1754845838984,-308.0,0.000212,2]
[378401811,1754845838994,-460.0,0.00021324,2]
[378401813,1754845839003,-460.0,0.00021324,2]
[378401815,1754845839012,-460.0,0.00021324,2]
[378401817,1754845839022,-460.0,0.00021324,2]
[378401819,1754845839033,-640.19,0.00021324,2]
[378401821,1754845839043,-1425.82,0.00021324,2]
[378401822,1754845839054,-460.0,0.00021324,2]
[378401824,1754845839064,-486.01,0.00021324,2]
[378401826,1754845839074,-460.0,0.00021324,2]
[378401828,1754845839083,-215.27,0.00021325,10]
[378401830,1754845839094,-160.0,0.0002133,2]
[378401832,1754845839103,-160.0,0.0002133,2]
[378401835,1754845839115,-215.44987349,0.00021335,2]
[378401837,1754845839125,-160.0,0.00021335,2]
[378401839,1754845839137,-843.0869304,0.00021335,2]
[378401841,1754845839146,-231.96268195,0.00021335,2]
[378401843,1754845839156,-461.62346162,0.00021335,2]
[378401845,1754845839167,-216.64838636,0.00021335,2]
[378401846,1754845839176,-12668.57659669,0.00021335,2]
[378401848,1754845839188,-160.0,0.00021335,2]
[378401851,1754845839198,-527.86640923,0.00021335,2]
[378401852,1754845839207,-443.76120411,0.0002145,2]
[378401854,1754845839218,-460.0,0.00021452,2]
[378401856,1754845839229,-460.0,0.00021452,2]
[378401859,1754845839239,-460.0,0.00021452,2]
[378401861,1754845839249,-460.0,0.00021452,2]
[378401863,1754845839259,-460.0,0.00021452,2]
[378401865,1754845839269,-1037.89,0.00021452,2]
[378401867,1754845839278,-460.0,0.00021452,2]
[378401869,1754845839288,-460.0,0.00021452,2]
[378401871,1754845839298,-460.0,0.00021452,2]
[378401873,1754845839307,-460.0,0.00021452,2]
[378401875,1754845839317,-500.0,0.00021495,2]
[378401877,1754845839327,-500.0,0.00021495,2]
[378401880,1754845839337,-509.01474091,0.00021495,2]
[378401881,1754845839350,-460.0,0.00021598,2]
[378401885,1754845839360,-460.0,0.00021598,2]
[378401886,1754845839369,-460.0,0.00021598,2]
[378401888,1754845839381,-460.0,0.00021598,2]
[378401890,1754845839391,-640.19,0.00021598,2]
[378401892,1754845839400,-1425.82,0.00021598,2]
[378401894,1754845839410,-557.97528636,0.00021598,2]
[378401896,1754845839419,-486.01,0.00021598,2]
[378401898,1754845839431,-460.0,0.00021598,2]
[378401900,1754845839440,-331.0374753,0.000216,2]
[378401902,1754845839450,-500.0,0.000216,2]
[378401905,1754845839461,-323.40389411,0.000216,2]
[378401907,1754845839470,-500.0,0.000216,2]
[378401909,1754845839480,-500.0,0.000216,2]
[378401911,1754845839489,-500.0,0.000216,2]
[378401913,1754845839499,-503.32533777,0.000216,2]
[378401915,1754845839508,-500.0,0.000216,2]
[378401917,1754845839517,-500.0,0.000216,2]
[378401919,1754845839527,-500.0,0.000216,2]
[378401921,1754845839537,-500.0,0.000216,2]
[378401923,1754845839546,-500.0,0.000216,2]
[378401925,1754845839556,-500.0,0.000216,2]
[378401927,1754845839565,-500.0,0.000216,2]
[378401929,1754845839575,-500.0,0.000216,2]
[378401931,1754845839584,-250.34670628,0.000216,2]
[378401933,1754845839594,-500.0,0.000216,2]
[378401935,1754845839603,-500.0,0.00021625,2]
[378401937,1754845839613,-500.0,0.00021673,2]
[378401939,1754845839622,-500.0,0.00021694,2]
[378401940,1754845839632,-500.0,0.00021694,2]
[378401942,1754845839641,-500.0,0.00021694,2]
[378401944,1754845839652,-500.0,0.00021694,2]
[378401946,1754845839662,-460.0,0.00021726,2]
[378401949,1754845839672,-460.0,0.00021726,2]
[378401951,1754845839681,-460.0,0.00021726,2]
[378401953,1754845839691,-1037.89,0.00021726,2]
[378401955,1754845839700,-460.0,0.00021726,2]
[378401957,1754845839710,-460.0,0.00021726,2]
[378401959,1754845839719,-464.28572783,0.00021726,2]
[378401960,1754845839729,-358.71937737,0.0002175,2]
[378401962,1754845839738,-500.0,0.00021762,2]
[378401965,1754845839748,-720.0,0.00021849,2]
[378401966,1754845839758,-460.0,0.00021872,2]
[378401968,1754845839767,-460.0,0.00021872,2]
[378401971,1754845839776,-460.0,0.00021872,2]
[378401973,1754845839786,-460.0,0.00021872,2]
[378401975,1754845839795,-640.19,0.00021872,2]
[378401976,1754845839805,-1425.82,0.00021872,2]
[378401978,1754845839815,-486.01,0.00021872,2]
[378401980,1754845839824,-460.0,0.00021872,2]
[378401982,1754845839833,-500.0,0.00021917,2]
[378401984,1754845839843,-500.0,0.00021917,2]
[378401986,1754845839853,-500.0,0.00021917,2]
[378401988,1754845839863,-6861.12,0.00021917,2]
[378401990,1754845839872,-1327.5605296,0.00021918,7]
[378401992,1754845839882,-200.0,0.00021918,2]
[378401994,1754845839891,-160.0,0.00021964,2]
[378401997,1754845839902,-577.82,0.0002199,3]
[378401999,1754845839911,-288.91,0.0002199,3]
[378402001,1754845839921,-866.77,0.0002199,3]
[378402003,1754845839930,-500.0,0.00022,2]
[378402004,1754845839941,-460.0,0.00022,2]
[378402006,1754845839950,-185.0,0.00022,2]
[378402008,1754845839960,-460.0,0.00022,2]
[378402010,1754845839970,-460.0,0.00022,2]
[378402013,1754845839980,-1037.89,0.00022,2]
[378402015,1754845839991,-460.0,0.00022,2]
[378402017,1754845840000,-460.0,0.00022,2]
[378402019,1754845840010,-525.0,0.00022,2]
[378402021,1754845840019,-2518.59,0.00022,2]
[378402023,1754845840033,-344.75,0.00022,2]
[378402024,1754845840043,-460.0,0.00022146,2]
[378402026,1754845840054,-460.0,0.00022146,2]
[378402029,1754845840064,-460.0,0.00022146,2]
[378402031,1754845840075,-460.0,0.00022146,2]
[378402033,1754845840085,-640.19,0.00022146,2]
[378402035,1754845840094,-1425.82,0.00022146,2]
[378402037,1754845840105,-486.01,0.00022146,2]
[378402039,1754845840117,-460.0,0.00022146,2]
[378402041,1754845840126,-500.0,0.00022148,2]
[378402043,1754845840136,-500.33812626,0.00022148,2]
[378402045,1754845840146,-816.53490844,0.00022148,2]
[378402047,1754845840156,-500.0,0.00022148,2]
[378402049,1754845840165,-500.0,0.00022148,2]
[378402051,1754845840175,-513.54100745,0.00022148,2]
[378402066,1754845840310,-500.0,0.00022148,2]
[378402069,1754845840321,-478.34941767,0.00022148,2]
[378402070,1754845840330,-246.76763945,0.00022148,2]
[378402073,1754845840341,-525.0,0.00022192,7]
[378402075,1754845840350,-1000.0,0.00022242,2]
[378402077,1754845840360,-500.0,0.00022242,2]
[378402079,1754845840369,-422.97070679,0.00022242,2]
[378402081,1754845840378,-1062.0,0.00022262,2]
[378402083,1754845840388,-500.0,0.00022274,2]
[378402085,1754845840398,-460.0,0.00022274,2]
[378402087,1754845840412,-460.0,0.00022274,2]
[378402089,1754845840421,-460.0,0.00022274,2]
[378402091,1754845840431,-1037.89,0.00022274,2]
[378402093,1754845840442,-460.0,0.00022274,2]
[378402095,1754845840452,-460.0,0.00022274,2]
[378402097,1754845840461,-153.0,0.00022334,2]
[378402099,1754845840470,-153.0,0.00022334,2]
[378402101,1754845840480,-460.0,0.0002242,2]
[378402103,1754845840489,-460.0,0.0002242,2]
[378402105,1754845840498,-460.0,0.0002242,2]
[378402107,1754845840507,-460.0,0.0002242,2]
[378402109,1754845840516,-640.19,0.0002242,2]
[378402111,1754845840525,-1425.82,0.0002242,2]
[378402113,1754845840535,-486.01,0.0002242,2]
[378402115,1754845840544,-460.0,0.0002242,2]
[378402117,1754845840553,-2335.82288224,0.00022448,2]
[378402119,1754845840563,-260.0,0.00022512,2]
[378402121,1754845840572,-500.0,0.00022548,2]
[378402123,1754845840582,-460.0,0.00022548,2]
[378402125,1754845840592,-501.75674561,0.00022548,2]
[378402127,1754845840602,-460.0,0.00022548,2]
[378402129,1754845840611,-1037.89,0.00022548,2]
[378402131,1754845840620,-460.0,0.00022548,2]
[378402133,1754845840630,-460.0,0.00022548,2]
[378402135,1754845840640,-353.72874864,0.00022603,2]
[378402137,1754845840649,-460.0,0.00022694,2]
[378402139,1754845840658,-460.0,0.00022694,2]
[378402141,1754845840667,-460.0,0.00022694,2]
[378402143,1754845840676,-460.0,0.00022694,2]
[378402145,1754845840686,-640.19,0.00022694,2]
[378402147,1754845840695,-1425.82,0.00022694,2]
[378402149,1754845840704,-486.01,0.00022694,2]
[378402151,1754845840714,-460.0,0.00022694,2]
[378402153,1754845840724,-151.0,0.00022701,2]
[378402155,1754845840733,-151.0,0.00022701,2]
[378402157,1754845840742,-151.0,0.00022701,2]
[378402159,1754845840753,-151.0,0.00022701,2]
[378402161,1754845840762,-151.0,0.00022701,2]
[378402163,1754845840772,-151.0,0.00022701,2]
[378402165,1754845840781,-151.0,0.00022701,2]
[378402167,1754845840791,-151.0,0.00022701,2]
[378402169,1754845840801,-151.0,0.00022701,2]
[378402171,1754845840810,-151.0,0.00022701,2]
[378402173,1754845840819,-151.0,0.00022701,2]
[378402175,1754845840828,-151.0,0.00022701,2]
[378402177,1754845840837,-151.0,0.00022701,2]
[378402179,1754845840846,-151.0,0.00022701,2]
[378402181,1754845840856,-151.0,0.00022701,2]
[378402183,1754845840865,-151.0,0.00022701,2]
[378402185,1754845840875,-151.0,0.00022701,2]
[378402187,1754845840885,-2335.82288224,0.00022761,2]
[378402189,1754845840895,-1500.0,0.0002279,2]
[378402191,1754845840904,-500.0,0.00022822,2]
[378402193,1754845840913,-460.0,0.00022822,2]
[378402195,1754845840923,-460.0,0.00022822,2]
[378402197,1754845840932,-1037.89,0.00022822,2]
[378402199,1754845840941,-460.0,0.00022822,2]
[378402201,1754845840950,-460.0,0.00022822,2]
[378402203,1754845840960,-1612.0,0.00022843,2]
[378402205,1754845840969,-460.0,0.00022968,2]
[378402207,1754845840978,-460.0,0.00022968,2]
[378402209,1754845840987,-460.0,0.00022968,2]
[378402211,1754845840997,-345.84953966,0.00022968,2]
[378402213,1754845841006,-640.19,0.00022968,2]
[378402215,1754845841016,-1425.82,0.00022968,2]
[378402217,1754845841025,-486.01,0.00022968,2]
[378402219,1754845841038,-460.0,0.00022968,2]
[378402221,1754845841047,-160.0,0.00023,2]
[378402223,1754845841057,-185.0,0.00023014,7]
[378402225,1754845841066,-525.0,0.00023014,7]
[378402227,1754845841076,-200.0,0.00023017,15]
[378402229,1754845841086,-200.0,0.00023017,15]
[378402231,1754845841095,-300.0,0.00023017,15]
[378402233,1754845841105,-360.0,0.0002306,2]
[378402235,1754845841118,-2335.82288224,0.00023074,2]
[378402237,1754845841128,-1068.9,0.00023085,2]
[378402239,1754845841139,-500.0,0.00023096,2]
[378402241,1754845841148,-460.0,0.00023096,2]
[378402243,1754845841157,-460.0,0.00023096,2]
[378402245,1754845841166,-1037.89,0.00023096,2]
[378402247,1754845841176,-252.80393231,0.00023096,2]
[378402249,1754845841185,-460.0,0.00023096,2]
[378402251,1754845841195,-184.37172481,0.00023183,2]
[378402253,1754845841204,-2518.59,0.00023183,2]
[378402255,1754845841213,-460.0,0.00023242,2]
[378402257,1754845841223,-587.93164712,0.00023242,2]
[378402259,1754845841232,-460.0,0.00023242,2]
[378402261,1754845841241,-640.19,0.00023242,2]
[378402263,1754845841250,-1425.82,0.00023242,2]
[378402265,1754845841259,-486.01,0.00023242,2]
[378402267,1754845841268,-460.0,0.00023242,2]
[378402269,1754845841277,-500.0,0.00023338,2]
[378402271,1754845841287,-1155.64,0.0002336,3]
[378402273,1754845841296,-577.82,0.0002336,3]
[378402275,1754845841306,-500.0,0.0002337,2]
[378402277,1754845841316,-460.0,0.0002337,2]
[378402279,1754845841325,-460.0,0.0002337,2]
[378402281,1754845841334,-1037.89,0.0002337,2]
[378402283,1754845841343,-460.0,0.0002337,2]
[378402285,1754845841353,-2335.82288224,0.00023387,2]
[378402287,1754845841363,-256.77,0.0002343,3]
[378402289,1754845841373,-1612.0,0.00023437,2]
[378402291,1754845841383,-1612.0,0.00023474,2]
[378402293,1754845841392,-292.76954589,0.00023516,2]
[378402295,1754845841402,-460.0,0.00023516,2]
[378402297,1754845841410,-640.19,0.00023516,2]
[378402299,1754845841420,-1425.82,0.00023516,2]
[378402301,1754845841429,-486.01,0.00023516,2]
[378402303,1754845841439,-151.0,0.00023518,7]
[378402305,1754845841448,-1612.0,0.00023528,2]
[378402307,1754845841458,-151.0,0.000236,6]
[378402309,1754845841468,-151.0,0.000236,9]
[378402311,1754845841478,-460.0,0.00023607,2]
[378402314,1754845841488,-2150.0,0.00023639,2]
[378402315,1754845841497,-636.0,0.00023639,2]
[378402317,1754845841506,-971.0,0.00023639,2]
[378402319,1754845841515,-408.0,0.00023639,2]
[378402321,1754845841525,-416.045,0.00023639,2]
[378402323,1754845841535,-500.0,0.00023644,2]
[378402326,1754845841544,-460.0,0.00023644,2]
[378402328,1754845841554,-460.0,0.00023644,2]
[378402330,1754845841563,-1037.89,0.00023644,2]
[378402331,1754845841573,-460.0,0.00023644,2]
[378402334,1754845841584,-7870.33324998,0.00023673,2]
[378402335,1754845841593,-151.0,0.000237,10]
[378402338,1754845841604,-151.0,0.000237,8]
[378402340,1754845841613,-2335.82288224,0.000237,2]
[378402342,1754845841622,-7870.33324998,0.00023737,2]
[378402344,1754845841633,-1068.9,0.00023759,3]
[378402346,1754845841641,-500.0,0.00023769,2]
[378402348,1754845841651,-263.34175626,0.00023769,2]
[378402350,1754845841660,-500.0,0.00023769,2]
[378402352,1754845841669,-500.0,0.00023769,2]
[378402354,1754845841678,-500.0,0.00023769,2]
[378402356,1754845841687,-500.0,0.00023769,2]
[378402358,1754845841697,-500.0,0.00023769,2]
[378402360,1754845841706,-500.0,0.00023769,2]
[378402362,1754845841715,-500.0,0.00023769,2]
[378402364,1754845841724,-500.0,0.00023769,2]
[378402366,1754845841733,-500.0,0.00023769,2]
[378402368,1754845841742,-500.0,0.00023769,2]
[378402370,1754845841752,-500.0,0.00023769,2]
[378402372,1754845841761,-392.2281634,0.00023769,2]
[378402373,1754845841771,-500.0,0.00023769,2]
[378402376,1754845841780,-500.0,0.00023769,2]
[378402377,1754845841791,-500.0,0.00023769,2]
[378402380,1754845841801,-500.0,0.00023769,2]
[378402381,1754845841810,-500.0,0.00023769,2]
[378402383,1754845841820,-500.0,0.00023769,2]
[378402385,1754845841830,-500.0,0.00023769,2]
[378402387,1754845841839,-184901.70278237,0.00023771,2]
[378402390,1754845841860,-460.0,0.00023516,2]
[378402392,1754845841869,-406.01526786,0.00023771,2]
[378402482,1754845842891,-327.57657436,0.00021324,2]
[378402484,1754845842902,-748.62342564,0.00021324,2]
[378402486,1754845842912,-1076.2,0.00021598,2]
[378402488,1754845842921,-341.52694774,0.00021726,2]
[378402490,1754845842931,-1076.2,0.00021872,2]
[378402492,1754845842940,-1076.2,0.00022146,2]
[378402495,1754845842949,-1076.2,0.0002242,2]
[378402498,1754845842958,-1076.2,0.00022694,2]
[378402500,1754845842968,-1076.2,0.00022968,2]
[378402502,1754845842977,-1076.2,0.00023242,2]
[378402504,1754845842986,-1076.2,0.00023516,2]
[378402505,1754845842995,-39490.98205434,0.00023771,2]
[378402808,1754845846304,-460.0,0.00020776,2]
[378402811,1754845846314,-80.60736584,0.00020776,2]
[378402815,1754845846326,-379.39263416,0.00020776,2]
[378402817,1754845846335,-500.0,0.00023769,2]
[378402819,1754845846344,-500.0,0.00023769,2]
[378402821,1754845846353,-350.0,0.00023769,2]
[378402823,1754845846362,-500.0,0.00023769,2]
[378402824,1754845846371,-500.0,0.00023769,2]
[378402826,1754845846380,-500.0,0.00023769,2]
[378402828,1754845846393,-50534.08305851,0.00023771,2]
[378402831,1754845846402,-500.0,0.00023773,2]
[378402832,1754845846412,-500.0,0.00023773,2]
[378402834,1754845846422,-500.0,0.00023773,2]
[378402837,1754845846432,-567.69740288,0.00023773,2]
[378402838,1754845846442,-500.0,0.00023773,2]
[378402840,1754845846451,-500.0,0.00023773,2]
[378402842,1754845846461,-500.0,0.00023773,2]
[378402844,1754845846470,-535.54312747,0.00023773,2]
[378402846,1754845846480,-572.75123812,0.00023773,2]
[378402848,1754845846489,-500.0,0.00023773,2]
[378402850,1754845846498,-500.0,0.00023773,2]
[378402852,1754845846508,-500.0,0.00023773,2]
[378402854,1754845846517,-500.0,0.00023773,2]
[378402856,1754845846526,-500.0,0.00023773,2]
[378402858,1754845846535,-500.30080758,0.00023773,2]
[378402860,1754845846545,-500.0,0.00023773,2]
[378402862,1754845846555,-500.0,0.00023773,2]
[378402864,1754845846564,-500.0,0.00023773,2]
[378402866,1754845846573,-500.0,0.00023773,2]
[378402868,1754845846583,-151.4297,0.00023781,2]
[378402870,1754845846592,-460.0,0.0002379,2]
[378402872,1754845846601,-640.19,0.0002379,2]
[378402874,1754845846610,-1425.82,0.0002379,2]
[378402876,1754845846621,-486.01,0.0002379,2]
[378402878,1754845846631,-460.0,0.0002379,2]
[378402880,1754845846642,-1076.2,0.0002379,2]
[378402882,1754845846651,-91844.1598609,0.000238,2]
[378405789,1754846469826,192.124158,0.00013699,2]
[378405794,1754846726858,9807.875842,0.00019775,2]
[378405795,1754846726882,10000.0,0.00019775,2]
[378405796,1754846726908,5092.124158,0.00019775,2]
[378405800,1754846737575,4907.875842,0.00019956,2]
[378405801,1754846737597,92.124158,0.00019956,2]
[378405806,1754846753745,5000.0,0.00019956,2]
[378405813,1754846770146,4907.875842,0.00019956,2]
[378405814,1754846770171,92.124158,0.00019956,2]
[378405815,1754846785960,5000.0,0.00019956,2]
[378405816,1754846803104,4907.875842,0.00019956,2]
[378405817,1754846803128,92.124158,0.00019956,2]
[378405818,1754846818614,5000.0,0.00019956,2]
[378405820,1754846828195,-254.31827841,0.0002,2]
[378405821,1754846828215,-155.21354608,0.00020153,2]
[378405822,1754846828236,-192.124158,0.00020187,2]
[378405823,1754846828258,-1200.0,0.00020773,2]
[378405824,1754846828277,-276.0,0.00020773,2]
[378405825,1754846828298,-200.0,0.00020774,2]
[378405826,1754846828318,-212.0,0.00020774,2]
[378405827,1754846828339,-300.0,0.00020774,2]
[378405828,1754846828358,-460.0,0.00020775,2]
[378405829,1754846828381,-460.0,0.00020775,2]
[378405830,1754846828401,-460.0,0.00020775,2]
[378405831,1754846828423,-460.0,0.00020775,2]
[378405832,1754846828444,-500.0,0.00020775,2]
[378405833,1754846828465,-561.87654357,0.00020775,2]
[378405834,1754846828485,-460.0,0.00020775,2]
[378405835,1754846828510,-460.0,0.00020775,2]
[378405836,1754846828532,-272.94896664,0.00020775,2]
[378405844,1754846929616,4907.875842,0.00017,2]
[378405845,1754846929637,6126.67439705,0.00017,2]
[378405855,1754847028616,2192.97762049,0.000189,2]
[378405897,1754847032018,-160.0,0.0002,3]
[378405899,1754847032029,-1805.72073465,0.00020359,2]
[378405901,1754847032040,-1082.27494397,0.00020359,2]
[378405911,1754847032126,-450.48029129,0.00020359,2]
[378405914,1754847032138,-545.18028167,0.00020359,2]
[378406454,1754847038045,-1116.34374842,0.00020359,2]
[378406456,1754847038055,-192.48890508,0.00020675,2]
[378406458,1754847038064,-500.0,0.00020773,2]
[378406460,1754847038074,-500.0,0.00020773,2]
[378406462,1754847038083,-720.0,0.00020774,2]
[378406464,1754847038093,-460.0,0.00020775,2]
[378406466,1754847038102,-460.0,0.00020775,2]
[378406468,1754847038111,-460.74209807,0.00020775,2]
[378406470,1754847038120,-460.0,0.00020775,2]
[378406472,1754847038130,-460.0,0.00020775,2]
[378406474,1754847038139,-222.38073437,0.00020775,2]
[378406476,1754847038148,-460.0,0.00020775,2]
[378406478,1754847038158,-460.0,0.00020775,2]
[378406480,1754847038167,-460.29294075,0.00020775,2]
[378406482,1754847038176,-460.0,0.00020775,2]
[378406484,1754847038185,-460.0,0.00020775,2]
[378406486,1754847038196,-460.0,0.00020775,2]
[378406488,1754847038205,-460.0,0.00020775,2]
[378406490,1754847038214,-460.0,0.00020775,2]
[378406492,1754847038224,-460.0,0.00020775,2]
[378406494,1754847038234,-460.0,0.00020775,2]
[378406496,1754847038242,-460.0,0.00020775,2]
[378406498,1754847038252,-460.0,0.00020775,2]
[378406500,1754847038261,-460.0,0.00020775,2]
[378406502,1754847038270,-599.15566667,0.00020775,2]
[378406504,1754847038279,-460.0,0.00020775,2]
[378406506,1754847038289,-460.0,0.00020775,2]
[378406508,1754847038298,-468.55317735,0.00020775,2]
[378406510,1754847038307,-550.95577573,0.00020775,2]
[378406512,1754847038316,-467.73685556,0.00020775,2]
[378406514,1754847038326,-538.1,0.00020775,2]
[378406516,1754847038335,-462.38107018,0.00020775,2]
[378406518,1754847038344,-500.0,0.00020775,2]
[378406520,1754847038353,-461.42814951,0.00020775,2]
[378406522,1754847038362,-460.0,0.00020775,2]
[378406523,1754847038371,-460.0,0.00020775,2]
[378406525,1754847038381,-460.0,0.00020775,2]
[378406527,1754847038390,-460.0,0.00020775,2]
[378406529,1754847038400,-508.24334652,0.00020775,2]
[378406532,1754847038409,-460.0,0.00020775,2]
[378406534,1754847038422,-460.0,0.00020775,2]
[378406535,1754847038431,-460.0,0.00020775,2]
[378406537,1754847038440,-461.30574509,0.00020775,2]
[378406539,1754847038449,-460.0,0.00020775,2]
[378406541,1754847038458,-460.0,0.00020775,2]
[378406543,1754847038468,-467.39838199,0.00020775,2]
[378406545,1754847038477,-460.0,0.00020775,2]
[378406547,1754847038487,-460.0,0.00020775,2]
[378406549,1754847038497,-343.79756744,0.00020775,2]